bitfinex-derivatives/quotes_BTCF0:USTF0_20240820
["timestamp","ask_amount","ask_price","bid_price","bid_amount"]
[1724152164077,0.161091,60674.0,60673.0,0.065892]
[1724152164282,0.065893,60672.0,60671.0,0.084759]
[1724152164477,0.3608,60672.0,60671.0,0.084759]
[1724152165283,0.42628717,60672.0,60671.0,0.084759]
[1724152165687,0.3608,60672.0,60671.0,0.084759]
[1724152166083,0.3608,60672.0,60671.0,0.150653]
[1724152166284,7.687e-05,60674.0,60671.0,0.379665]
[1724152166493,7.687e-05,60674.0,60672.0,0.04927829]
[1724152166687,7.687e-05,60674.0,60673.0,0.04927829]
[1724152166989,0.00307687,60674.0,60673.0,0.04927829]
[1724152167483,7.687e-05,60674.0,60673.0,0.18107468]
[1724152167687,0.00107687,60674.0,60673.0,0.18107468]
[1724152168082,7.687e-05,60674.0,60673.0,0.18107468]
[1724152168285,0.00207687,60674.0,60673.0,0.19007468]
[1724152168482,0.05119724,60674.0,60673.0,0.140784]
[1724152168696,0.00207687,60674.0,60673.0,0.15080458]
[1724152168886,0.05119724,60674.0,60673.0,0.15080458]
[1724152169193,0.00207687,60674.0,60673.0,0.15080458]
[1724152169389,0.05119724,60674.0,60673.0,0.08491258]
[1724152169585,0.00207687,60674.0,60673.0,0.08491258]
[1724152169778,0.00107687,60674.0,60673.0,0.08091258]
[1724152169976,0.00207687,60674.0,60673.0,0.08591258]
[1724152170485,0.00207687,60674.0,60673.0,0.08691258]
[1724152170688,0.00107687,60674.0,60673.0,0.08191258]
[1724152170992,0.00107687,60674.0,60673.0,0.08691258]
[1724152170993,0.00207687,60674.0,60673.0,0.08691258]
[1724152171490,0.00207687,60674.0,60673.0,0.15280458]
[1724152171697,0.00207687,60674.0,60673.0,0.08691258]
[1724152172289,0.00207687,60674.0,60673.0,0.15280458]
[1724152173283,0.00207687,60674.0,60673.0,0.20209526]
[1724152174091,0.00107687,60674.0,60673.0,0.19709526]
[1724152174294,0.00207687,60674.0,60673.0,0.22784495]
[1724152174498,0.00207687,60674.0,60673.0,0.17855427]
[1724152174997,0.00107687,60674.0,60673.0,0.17155427]
[1724152175193,0.00107687,60674.0,60673.0,0.17755427]
[1724152175492,0.00107687,60674.0,60673.0,0.24344627]
[1724152176292,0.00107687,60674.0,60673.0,0.33755427]
[1724152176497,0.00107687,60674.0,60673.0,0.40344627]
[1724152176699,0.00207687,60674.0,60673.0,0.40444627]
[1724152176907,0.00207687,60674.0,60673.0,0.31280458]
[1724152177088,0.00207687,60674.0,60673.0,0.33855426]
[1724152177899,0.00207687,60674.0,60673.0,0.33755426]
[1724152177900,0.00107687,60674.0,60673.0,0.33755426]
[1724152178196,0.06656721,60674.0,60673.0,0.33755426]
[1724152178795,0.06656721,60674.0,60673.0,0.27166226]
[1724152179695,0.06656721,60674.0,60673.0,0.26766226]
[1724152179999,0.06656721,60674.0,60673.0,0.26966226]
[1724152180194,0.06656721,60674.0,60673.0,0.33555426]
[1724152180589,0.00107687,60674.0,60673.0,0.33755426]
[1724152180795,7.687e-05,60674.0,60673.0,0.33155426]
[1724152180996,0.00107687,60674.0,60673.0,0.31180458]
[1724152181200,0.00107687,60674.0,60673.0,0.33755424]
[1724152181403,0.00207687,60674.0,60673.0,0.30680458]
[1724152181703,0.00207687,60674.0,60673.0,0.33855424]
[1724152183098,0.00107687,60674.0,60673.0,0.3787537]
[1724152183304,0.00107687,60674.0,60673.0,0.36221356]
[1724152183603,0.00107687,60674.0,60673.0,0.36221247]
[1724152184393,0.00107687,60674.0,60673.0,0.3128617]
[1724152185402,0.00107687,60674.0,60673.0,0.24591258]
[1724152185593,0.00107687,60674.0,60673.0,0.31286195]
[1724152186503,0.06656721,60674.0,60673.0,0.31286195]
[1724152187004,0.06656721,60674.0,60673.0,0.37875395]
[1724152187699,0.00107687,60674.0,60673.0,0.37875395]
[1724152187905,0.06656721,60674.0,60673.0,0.37875395]
[1724152191198,0.00107687,60674.0,60673.0,0.37875395]
[1724152194399,0.06696787,60674.0,60673.0,0.14284137]
[1724152195002,3.83696787,60674.0,60673.0,0.14284137]
[1724152195198,3.83696787,60674.0,60673.0,0.07694937]
[1724152195503,4.19776787,60674.0,60673.0,0.03574976]
[1724152195896,4.13187687,60674.0,60673.0,0.10164176]
[1724152196298,0.00107687,60674.0,60673.0,0.10164176]
[1724152196499,0.00107687,60674.0,60673.0,0.14284227]
[1724152198312,0.36187687,60674.0,60673.0,0.10164176]
[1724152198698,0.38857818,60674.0,60673.0,0.14284352]
[1724152199510,0.38857818,60674.0,60673.0,0.19226628]
[1724152199733,0.048,60679.0,60673.0,0.53018976]
[1724152199734,0.09855478,60679.0,60673.0,0.53018976]
[1724152200010,0.09855478,60679.0,60678.0,0.426687]
[1724152200011,0.06569425,60679.0,60678.0,0.426687]
[1724152200216,0.16442778,60691.0,60678.0,0.426687]
[1724152200217,0.065882,60683.0,60678.0,0.44520538]
[1724152200410,0.08211079,60681.0,60679.0,0.08440538]
[1724152200710,0.08211079,60681.0,60680.0,0.04320531]
[1724152200915,0.14799379,60681.0,60680.0,0.04320531]
[1724152201308,0.14799379,60681.0,60678.0,0.42668659]
[1724152201613,0.14799379,60681.0,60679.0,0.04320228]
[1724152201809,0.14799379,60681.0,60680.0,0.04320228]
[1724152202114,0.065883,60681.0,60680.0,0.04320228]
[1724152202501,0.14798006,60681.0,60680.0,0.04320228]
[1724152203210,3.91798006,60681.0,60680.0,0.08439849]
[1724152203809,0.14998006,60681.0,60680.0,0.08439849]
[1724152204010,0.14998006,60681.0,60680.0,0.07514919]
[1724152204211,0.14998006,60681.0,60680.0,0.04320228]
[1724152204409,0.14998006,60681.0,60680.0,0.09260146]
[1724152204607,0.09458256,60681.0,60680.0,0.0257477]
[1724152205102,0.065886,60679.0,60678.0,0.3608]
[1724152205306,0.065889,60676.0,60675.0,0.04939918]
[1724152205616,0.065891,60675.0,60674.0,0.06589]
[1724152205923,0.113791,60675.0,60674.0,0.06589]
[1724152206116,0.14049188,60675.0,60674.0,0.09164068]
[1724152206415,0.113791,60675.0,60674.0,0.09164068]
[1724152206611,0.14049361,60675.0,60674.0,0.09164068]
[1724152207209,0.14049361,60675.0,60674.0,0.09664068]
[1724152207809,0.14049361,60675.0,60674.0,0.09164068]
[1724152208008,0.14149361,60675.0,60674.0,0.09164068]
[1724152208913,0.63593361,60675.0,60674.0,0.09164068]
[1724152209211,1.03593361,60675.0,60674.0,0.06589]
[1724152209405,1.03593361,60675.0,60674.0,0.06689]
[1724152209602,1.03593361,60675.0,60674.0,0.001]
[1724152209920,0.065893,60672.0,60671.0,0.084759]
[1724152210111,0.14788019,60672.0,60671.0,0.084759]
[1724152210306,0.64236019,60672.0,60671.0,0.084759]
[1724152210510,0.14788019,60672.0,60671.0,0.084759]
[1724152211110,0.08198719,60672.0,60671.0,0.084759]
[1724152211312,0.1475684,60672.0,60671.0,0.084759]
[1724152211506,0.013,60675.0,60674.0,0.065891]
[1724152211910,0.007,60675.0,60674.0,0.065891]
[1724152212919,0.3608,60677.0,60676.0,0.065889]
[1724152213108,0.45338956,60677.0,60676.0,0.065889]
[1724152216117,0.45338971,60677.0,60676.0,0.065889]
[1724152216517,0.46138971,60677.0,60676.0,0.065889]
[1724152216913,0.46138971,60677.0,60671.0,0.018865]
[1724152216914,1.28994171,60677.0,60671.0,0.018865]
[1724152217220,0.08196755,60673.0,60672.0,0.065893]
[1724152217625,3.85196755,60673.0,60672.0,0.065893]
[1724152217813,0.08196755,60673.0,60672.0,0.065893]
[1724152218419,3.85196755,60673.0,60672.0,0.065893]
[1724152219711,3.85396755,60673.0,60672.0,0.065893]
[1724152220523,3.85496755,60673.0,60672.0,0.065893]
[1724152221122,3.85396755,60673.0,60672.0,0.09164617]
[1724152221314,3.91985955,60673.0,60672.0,0.09164617]
[1724152221522,3.86459567,60673.0,60672.0,0.065893]
[1724152222128,0.02870367,60673.0,60672.0,0.131786]
[1724152222322,0.02870367,60673.0,60672.0,0.15753818]
[1724152222323,0.002,60673.0,60672.0,0.15753818]
[1724152222718,0.002,60673.0,60672.0,0.29683818]
[1724152222925,0.06757865,60673.0,60672.0,0.3380391]
[1724152223627,0.06757865,60673.0,60672.0,0.40489375]
[1724152224129,0.06857865,60673.0,60672.0,0.41389375]
[1724152224321,0.06857865,60673.0,60672.0,0.39643576]
[1724152224520,0.06857865,60673.0,60672.0,0.41389123]
[1724152224722,0.06757865,60673.0,60672.0,0.40489123]
[1724152224924,0.06857865,60673.0,60672.0,0.41289123]
[1724152225524,0.06657865,60673.0,60672.0,0.41289123]
[1724152225726,0.06757865,60673.0,60672.0,0.41889123]
[1724152226225,0.002,60673.0,60672.0,0.36949205]
[1724152226831,0.05118068,60673.0,60672.0,0.43537864]
[1724152227131,0.002,60673.0,60672.0,0.52948485]
[1724152227327,0.04918068,60674.0,60673.0,0.131784]
[1724152227623,0.04918068,60674.0,60673.0,0.28196761]
[1724152228039,0.04918068,60674.0,60673.0,0.19756876]
[1724152228330,0.23076,60705.0,60673.0,0.19756876]
[1724152228331,0.06557865,60680.0,60679.0,0.131772]
[1724152228527,0.06557865,60681.0,60680.0,0.131768]
[1724152228728,0.06557865,60682.0,60681.0,0.065883]
[1724152228929,0.06557865,60682.0,60681.0,0.09163019]
[1724152229321,0.06557865,60682.0,60681.0,0.15751319]
[1724152229529,0.06557865,60683.0,60682.0,0.065882]
[1724152229831,0.06555028,60684.0,60683.0,0.131762]
[1724152230134,0.06555028,60684.0,60683.0,0.25190919]
[1724152231029,0.06555028,60684.0,60683.0,0.89626919]
[1724152231229,0.00024704,60689.0,60686.0,0.065878]
[1724152231230,0.06555028,60687.0,60686.0,0.065878]
[1724152231434,0.06555028,60687.0,60686.0,0.45242519]
[1724152231730,0.00024704,60689.0,60688.0,0.065876]
[1724152231929,0.00024704,60689.0,60688.0,0.09162047]
[1724152233233,0.00024704,60689.0,60688.0,0.065876]
[1724152233732,0.01024704,60689.0,60688.0,0.066876]
[1724152234735,0.01024704,60689.0,60688.0,0.07695579]
[1724152234928,0.01924704,60689.0,60688.0,0.07795579]
[1724152241132,0.01924704,60689.0,60688.0,0.22795579]
[1724152242436,0.0683292,60689.0,60688.0,0.22795579]
[1724152242742,0.01924704,60689.0,60688.0,0.22795579]
[1724152243243,0.01924704,60689.0,60688.0,0.38545129]
[1724152243439,0.01924704,60689.0,60688.0,0.67005129]
[1724152243937,0.11780182,60689.0,60688.0,0.67005129]
[1724152244143,0.14449454,60689.0,60688.0,0.67005129]
[1724152244327,0.04593976,60689.0,60688.0,0.64430779]
[1724152244738,0.06222587,60701.0,60693.0,0.06587]
[1724152244739,0.11498058,60697.0,60693.0,0.06587]
[1724152245049,0.07211287,60696.0,60694.0,0.31033985]
[1724152245236,0.0929,60707.0,60694.0,0.31033985]
[1724152245237,0.11498058,60702.0,60701.0,0.065862]
[1724152245442,0.11498058,60702.0,60701.0,0.426662]
[1724152245443,0.07237921,60702.0,60701.0,0.426662]
[1724152245945,0.06967509,60702.0,60701.0,0.3608]
[1724152246242,0.04298734,60702.0,60701.0,0.3608]
[1724152246443,0.0919,60707.0,60705.0,0.065857]
[1724152246645,0.0697416,60706.0,60705.0,0.065857]
[1724152247634,0.04305413,60706.0,60705.0,0.065857]
[1724152247833,0.0767416,60706.0,60705.0,0.066857]
[1724152248033,0.0867416,60706.0,60705.0,0.067857]
[1724152251942,0.08242716,60706.0,60705.0,0.067857]
[1724152253147,0.017,60706.0,60705.0,0.067857]
[1724152253337,0.08242716,60706.0,60705.0,0.067857]
[1724152253734,0.017,60706.0,60705.0,0.133714]
[1724152253945,0.08244512,60706.0,60705.0,0.133714]
[1724152254938,0.08244512,60706.0,60705.0,0.067857]
[1724152255543,0.017,60706.0,60705.0,0.067857]
[1724152259838,0.08669713,60706.0,60705.0,0.133714]
[1724152261644,0.00024704,60708.0,60707.0,0.13171]
[1724152261949,0.00024704,60708.0,60707.0,0.27171]
[1724152262152,0.00024704,60708.0,60707.0,0.76587]
[1724152262652,0.00024704,60708.0,60707.0,0.27171]
[1724152263150,0.00924704,60708.0,60707.0,0.27271]
[1724152263347,0.00924704,60708.0,60707.0,0.76687]
[1724152263550,0.01009313,60722.0,60716.0,0.065845]
[1724152263745,0.01009313,60722.0,60716.0,0.426645]
[1724152264250,0.3608,60719.0,60716.0,0.065845]
[1724152264453,0.065848,60714.0,60713.0,0.065848]
[1724152264651,0.06585,60713.0,60710.0,0.36104704]
[1724152264954,0.06585,60712.0,60710.0,0.42689904]
[1724152265155,0.0476,60711.0,60710.0,0.42689904]
[1724152265845,3.8176,60711.0,60710.0,0.42689904]
[1724152266551,3.8176,60711.0,60710.0,0.42789904]
[1724152266749,3.8176,60711.0,60704.0,0.3608]
[1724152266750,0.065854,60708.0,60707.0,0.065855]
[1724152267848,3.835854,60708.0,60707.0,0.065855]
[1724152268457,3.835854,60708.0,60704.0,0.3608]
[1724152268458,3.86254089,60708.0,60704.0,0.3608]
[1724152268652,3.86254089,60708.0,60707.0,0.065854]
[1724152268953,4.22334089,60708.0,60707.0,1e-08]
[1724152269150,4.71750089,60708.0,60707.0,1e-08]
[1724152269349,5.18335789,60708.0,60707.0,0.00100001]
[1724152269552,5.11750089,60708.0,60701.0,0.00024704]
[1724152269745,0.3608,60702.0,60701.0,0.00024704]
[1724152270260,0.426661,60702.0,60701.0,0.00024704]
[1724152270758,0.426661,60702.0,60701.0,0.00124704]
[1724152271156,0.3608,60702.0,60701.0,0.06810904]
[1724152271855,0.3668,60702.0,60701.0,0.06810904]
[1724152273362,0.39348689,60702.0,60701.0,0.06810904]
[1724152273953,0.43410139,60702.0,60701.0,0.06810904]
[1724152274353,0.07330139,60702.0,60701.0,0.42890904]
[1724152277860,0.07340311,60702.0,60701.0,0.42890904]
[1724152281965,0.08796692,60702.0,60701.0,0.42890904]
[1724152282562,0.08796692,60702.0,60701.0,0.06810904]
[1724152284565,0.006,60702.0,60701.0,0.06810904]
[1724152284967,1.28773101,60702.0,60696.0,0.04925098]
[1724152285271,1.28773101,60702.0,60688.0,0.00012611]
[1724152285272,0.065875,60689.0,60688.0,0.00012611]
[1724152285858,3.835875,60689.0,60688.0,0.00012611]
[1724152287469,3.91779884,60689.0,60688.0,0.00012611]
[1724152287770,3.835875,60689.0,60688.0,0.00012611]
[1724152287971,3.86257311,60689.0,60688.0,0.00012611]
[1724152288274,3.91768284,60689.0,60688.0,0.00012611]
[1724152288569,0.065881,60684.0,60681.0,0.065883]
[1724152288873,0.06544423,60684.0,60681.0,0.065883]
[1724152289365,3.85193395,60689.0,60681.0,0.065883]
[1724152289366,0.065882,60682.0,60681.0,0.065883]
[1724152290062,0.065893,60672.0,60671.0,0.018865]
[1724152290263,0.777186,60672.0,60671.0,0.018865]
[1724152290467,4.26215391,60672.0,60671.0,0.018865]
[1724152290964,4.19681911,60672.0,60671.0,0.018865]
[1724152291470,4.19781911,60672.0,60671.0,0.030865]
[1724152292169,4.19881911,60672.0,60671.0,0.018865]
[1724152292371,4.24775676,60672.0,60671.0,0.018865]
[1724152292763,0.41186376,60672.0,60671.0,0.018865]
[1724152292959,0.36292611,60672.0,60671.0,0.007365]
[1724152293159,0.42881911,60672.0,60671.0,0.007365]
[1724152293359,0.42881911,60672.0,60655.0,0.046]
[1724152293360,0.065899,60667.0,60665.0,0.0659]
[1724152293664,0.0659,60666.0,60665.0,0.0659]
[1724152294775,0.0659,60666.0,60665.0,0.0759]
[1724152295464,0.0659,60666.0,60665.0,0.0659]
[1724152295665,0.0659,60666.0,60665.0,0.0759]
[1724152296065,0.4267,60666.0,60665.0,0.01]
[1724152296376,0.4267,60666.0,60639.0,0.065928]
[1724152296377,0.065913,60654.0,60639.0,0.065928]
[1724152296677,0.065903,60663.0,60639.0,0.065929]
[1724152296678,4.0546,60640.0,60639.0,0.065929]
[1724152296862,3.77,60640.0,60639.0,0.07845394]
[1724152297269,3.7702009,60640.0,60639.0,0.07845394]
[1724152298177,3.7702009,60640.0,60636.0,0.349665]
[1724152298178,4.0548009,60640.0,60636.0,0.349665]
[1724152298374,4.0548009,60640.0,60629.0,0.3608]
[1724152298577,4.0548009,60640.0,60639.0,0.014]
[1724152299074,3.7702009,60640.0,60634.0,0.065934]
[1724152299278,3.7712009,60640.0,60639.0,0.013]
[1724152300169,3.8371289,60640.0,60639.0,0.013]
[1724152301176,3.7712009,60640.0,60639.0,0.007]
[1724152301383,3.7712009,60640.0,60635.0,0.426733]
[1724152301679,0.0022009,60640.0,60635.0,0.3608]
[1724152301878,0.0022009,60640.0,60639.0,0.065929]
[1724152302081,0.111916,60652.0,60639.0,0.065929]
[1724152302082,0.3608,60654.0,60652.0,0.065915]
[1724152302378,0.426706,60660.0,60648.0,0.3608]
[1724152302379,0.3608,60660.0,60648.0,0.3608]
[1724152302574,0.3608,60660.0,60653.0,0.36305879]
[1724152302971,5.083e-05,60659.0,60658.0,0.065908]
[1724152303576,5.083e-05,60659.0,60658.0,0.06816679]
[1724152303877,5.083e-05,60659.0,60658.0,0.00225879]
[1724152303878,0.06595783,60659.0,60658.0,0.00225879]
[1724152304081,1.54001083,60659.0,60650.0,0.00024725]
[1724152304381,0.3608,60651.0,60650.0,0.00024725]
[1724152304572,4.1308,60651.0,60650.0,0.00024725]
[1724152305073,0.426716,60651.0,60650.0,0.00024725]
[1724152306374,0.431716,60651.0,60650.0,0.00024725]
[1724152306566,4.207716,60651.0,60650.0,0.00024725]
[1724152307771,0.065924,60644.0,60640.0,0.065927]
[1724152308378,0.065927,60641.0,60640.0,0.065927]
[1724152308579,0.065927,60641.0,60640.0,0.06818561]
[1724152308970,0.065927,60641.0,60640.0,0.07418561]
[1724152309278,0.065927,60641.0,60640.0,0.07918561]
[1724152309476,0.065927,60641.0,60640.0,0.07318561]
[1724152309675,0.066927,60641.0,60640.0,0.07918561]
[1724152310276,0.001,60641.0,60640.0,0.07918561]
[1724152313680,0.066927,60641.0,60640.0,0.07918561]
[1724152313889,0.065928,60640.0,60621.0,0.065948]
[1724152314085,0.3608,60634.0,60631.0,0.065937]
[1724152314285,0.3608,60634.0,60626.0,0.3608]
[1724152314582,0.3608,60634.0,60633.0,0.065936]
[1724152314786,0.04889753,60639.0,60633.0,0.065936]
[1724152314787,5.083e-05,60639.0,60638.0,0.06593]
[1724152315385,5.083e-05,60639.0,60633.0,0.3608]
[1724152315386,0.04889753,60639.0,60633.0,0.3608]
[1724152315585,0.2846,60636.0,60633.0,0.3608]
[1724152316085,0.2846,60636.0,60626.0,0.014]
[1724152316086,0.065942,60627.0,60626.0,0.014]
[1724152316289,0.6454,60627.0,60626.0,0.014]
[1724152316480,4.46418243,60627.0,60624.0,0.065945]
[1724152317081,4.46418243,60627.0,60618.0,0.0482]
[1724152317287,5.083e-05,60626.0,60619.0,0.3608]
[1724152317483,0.00024725,60633.0,60625.0,0.065944]
[1724152317682,0.00024725,60633.0,60632.0,0.426737]
[1724152318086,0.00024725,60633.0,60632.0,1.321537]
[1724152318487,0.00024725,60633.0,60632.0,1.471537]
[1724152318986,0.065921,60646.0,60624.0,0.426745]
[1724152318987,0.065933,60635.0,60625.0,0.0477]
[1724152319190,0.065933,60635.0,60628.0,0.065941]
[1724152319396,0.001,60633.0,60632.0,0.005]
[1724152321085,0.2846,60638.0,60632.0,0.004]
[1724152321281,0.2846,60638.0,60632.0,0.01]
[1724152321282,0.001,60633.0,60632.0,0.01]
[1724152321590,0.001,60633.0,60632.0,0.075937]
[1724152321791,4.13104725,60639.0,60638.0,0.06593]
[1724152321792,0.00024725,60639.0,60638.0,0.06593]
[1724152321996,0.00024725,60639.0,60638.0,0.42673]
[1724152322696,0.00024725,60639.0,60638.0,0.47591168]
[1724152322989,0.00024725,60639.0,60638.0,0.42673]
[1724152323386,0.00024725,60639.0,60638.0,0.52101168]
[1724152323587,0.00024725,60639.0,60638.0,0.09428168]
[1724152323787,0.00024725,60639.0,60638.0,0.009]
[1724152323788,0.06717625,60639.0,60638.0,0.009]
[1724152325093,0.06817625,60639.0,60638.0,0.009]
[1724152325801,0.56189625,60639.0,60628.0,0.04918168]
[1724152326091,0.065941,60628.0,60626.0,0.00024725]
[1724152327490,0.066941,60628.0,60626.0,0.01324725]
[1724152327689,0.001,60628.0,60626.0,0.01324725]
[1724152327989,0.001,60628.0,60627.0,0.065942]
[1724152328184,0.001,60628.0,60627.0,0.215942]
[1724152328384,0.001,60628.0,60627.0,0.710782]
[1724152328600,0.001,60628.0,60627.0,1.110782]
[1724152329486,0.002,60628.0,60627.0,1.110782]
[1724152329686,0.3608,60632.0,60631.0,0.065938]
[1724152329886,0.3608,60632.0,60631.0,0.235938]
[1724152330287,0.3608,60632.0,60631.0,1.130738]
[1724152330885,0.04900381,60636.0,60631.0,1.130738]
[1724152331091,0.04900381,60637.0,60636.0,0.065932]
[1724152331289,0.04900381,60637.0,60636.0,0.596732]
[1724152331491,0.04900381,60637.0,60631.0,0.065937]
[1724152331492,0.065938,60631.0,60620.0,0.06572937]
[1724152331699,0.7216,60621.0,60617.0,0.00012028]
[1724152332000,0.83657305,60621.0,60620.0,0.04930095]
[1724152332197,0.787549,60621.0,60620.0,0.04930095]
[1724152332504,4.557549,60621.0,60620.0,0.04930095]
[1724152333586,4.558549,60621.0,60620.0,0.04930095]
[1724152333793,4.558549,60621.0,60620.0,0.05330095]
[1724152333992,4.60756533,60621.0,60620.0,0.05330095]
[1724152335195,4.558549,60621.0,60620.0,0.05330095]
[1724152335791,4.558549,60621.0,60620.0,0.05530095]
[1724152336190,4.558549,60621.0,60620.0,0.12125095]
[1724152336191,0.001,60621.0,60620.0,0.12125095]
[1724152336589,0.3618,60621.0,60620.0,0.12125095]
[1724152337093,0.4108205,60621.0,60620.0,0.17055447]
[1724152337900,0.4108205,60621.0,60620.0,0.12125095]
[1724152338401,0.3618,60621.0,60620.0,0.12125095]
[1724152340398,0.3618,60621.0,60620.0,0.05530095]
[1724152340601,0.712349,60621.0,60620.0,0.006]
[1724152340810,0.427749,60621.0,60620.0,0.006]
[1724152340990,4.197749,60621.0,60620.0,0.006]
[1724152341699,0.065952,60618.0,60617.0,0.00012028]
[1724152341906,0.11495836,60618.0,60617.0,0.04942123]
[1724152342702,0.065952,60618.0,60617.0,0.04942123]
[1724152343005,0.067952,60618.0,60617.0,0.05742123]
[1724152343503,0.067952,60618.0,60617.0,0.00812028]
[1724152343905,0.11694949,60618.0,60617.0,0.00812028]
[1724152344595,0.067952,60618.0,60617.0,0.00812028]
[1724152345101,0.002,60618.0,60617.0,0.12337423]
[1724152351506,0.002,60618.0,60617.0,0.69337423]
[1724152352307,0.002,60618.0,60617.0,0.71914737]
[1724152353309,0.002,60618.0,60617.0,0.76845089]
[1724152354309,0.05098883,60618.0,60617.0,0.29337423]
[1724152354514,0.002,60618.0,60617.0,0.29337423]
[1724152354711,0.05105427,60618.0,60617.0,0.29337423]
[1724152354915,0.065946,60624.0,60617.0,0.29337423]
[1724152354916,0.04930335,60627.0,60618.0,0.49492]
[1724152355105,0.00024725,60627.0,60626.0,0.54201422]
[1724152355407,0.065931,60637.0,60626.0,1.18312824]
[1724152355408,0.0490561,60633.0,60626.0,1.18312824]
[1724152355613,0.0490561,60633.0,60632.0,0.065937]
[1724152355916,0.04907021,60633.0,60632.0,0.065937]
[1724152356513,0.40987021,60635.0,60634.0,0.065934]
[1724152356901,0.3608,60635.0,60634.0,0.065934]
[1724152357319,0.06536574,60638.0,60637.0,0.065931]
[1724152357508,0.06561299,60639.0,60638.0,0.06593]
[1724152357710,0.00024725,60639.0,60638.0,0.06593]
[1724152357908,0.06565229,60639.0,60638.0,0.06593]
[1724152358416,0.06565119,60639.0,60638.0,0.06593]
[1724152358715,0.00024725,60639.0,60638.0,0.06593]
[1724152359422,0.04929209,60639.0,60638.0,0.06593]
[1724152359713,0.00024725,60639.0,60638.0,0.06593]
[1724152360024,0.04929209,60639.0,60638.0,0.06593]
[1724152360311,0.02324725,60639.0,60638.0,0.06693]
[1724152364222,0.07229209,60639.0,60638.0,0.06693]
[1724152364420,0.02324725,60639.0,60638.0,0.06693]
[1724152365210,0.1381695,60639.0,60638.0,0.001]
[1724152365433,0.15458019,60639.0,60638.0,0.001]
[1724152365611,0.20378019,60639.0,60638.0,0.001]
[1724152365918,3.90837625,60639.0,60638.0,0.001]
[1724152370222,3.84223329,60639.0,60638.0,0.06693]
[1724152373127,3.90816229,60639.0,60635.0,0.065933]
[1724152373317,0.04898604,60638.0,60635.0,0.225933]
[1724152373929,3.77,60637.0,60635.0,0.225933]
[1724152374225,3.77,60637.0,60636.0,0.065932]
[1724152374429,3.81898604,60637.0,60636.0,0.065932]
[1724152375022,3.77,60637.0,60636.0,0.065932]
[1724152375328,0.08317625,60639.0,60636.0,0.065932]
[1724152375726,0.04902631,60637.0,60636.0,0.065932]
[1724152376030,0.05802631,60637.0,60636.0,0.065932]
[1724152376533,0.009,60637.0,60636.0,0.065932]
[1724152376934,3.77084,60638.0,60637.0,0.065931]
[1724152377125,3.77,60638.0,60637.0,0.065931]
[1724152377528,0.06617625,60639.0,60638.0,0.06593]
[1724152378134,3.83617625,60639.0,60638.0,0.06593]
[1724152379332,3.90149874,60639.0,60638.0,0.06593]
[1724152379737,3.91249874,60639.0,60638.0,0.06593]
[1724152379926,0.06593,60638.0,60631.0,0.04933782]
[1724152380130,0.6454,60633.0,60626.0,0.06619025]
[1724152380335,0.3608,60627.0,60626.0,0.00024725]
[1724152380530,0.426742,60627.0,60626.0,0.00024725]
[1724152380735,0.45346915,60627.0,60626.0,0.00024725]
[1724152381038,4.15752715,60627.0,60622.0,0.065946]
[1724152381241,0.3608,60623.0,60622.0,0.065946]
[1724152382140,0.426746,60623.0,60622.0,0.065946]
[1724152382334,4.196746,60623.0,60622.0,0.065946]
[1724152382932,4.1308,60623.0,60617.0,0.00012028]
[1724152383131,0.40986274,60618.0,60617.0,0.06607328]
[1724152383426,0.3608,60618.0,60617.0,0.06607328]
[1724152384534,0.3628,60618.0,60617.0,0.07107328]
[1724152387856,0.002,60618.0,60617.0,0.07107328]
[1724152388444,0.002,60618.0,60617.0,0.24107328]
[1724152389359,0.002,60618.0,60617.0,0.26684597]
[1724152390854,0.002,60618.0,60617.0,1.16176597]
[1724152391255,0.00024725,60626.0,60625.0,0.065944]
[1724152391461,0.00024725,60626.0,60625.0,0.235944]
[1724152393061,0.00024725,60626.0,60625.0,0.237944]
[1724152393463,0.00024725,60626.0,60625.0,0.238944]
[1724152394051,0.04930999,60626.0,60625.0,0.238944]
[1724152394255,0.00024725,60626.0,60625.0,0.238944]
[1724152394863,0.04930999,60626.0,60625.0,0.238944]
[1724152395566,0.00024725,60626.0,60625.0,0.238944]
[1724152396357,0.04930999,60626.0,60625.0,0.238944]
[1724152396557,0.00024725,60626.0,60625.0,0.238944]
[1724152396866,0.04930999,60626.0,60625.0,0.238944]
[1724152397251,0.00024725,60626.0,60625.0,0.238944]
[1724152397454,0.04930999,60626.0,60625.0,0.238944]
[1724152398267,0.00024725,60626.0,60625.0,0.238944]
[1724152401669,0.00024725,60626.0,60625.0,0.24888273]
[1724152402864,0.00024725,60626.0,60625.0,0.27465378]
[1724152403167,0.00024725,60626.0,60625.0,0.27465393]
[1724152403470,0.00024725,60626.0,60625.0,0.2746539]
[1724152403664,0.00024725,60626.0,60625.0,0.27465389]
[1724152404065,0.00024725,60626.0,60625.0,0.24888273]
[1724152406160,0.00024725,60626.0,60625.0,0.27465423]
[1724152407066,0.00024725,60626.0,60625.0,0.27465364]
[1724152407272,0.00024725,60626.0,60625.0,0.27465393]
[1724152407962,0.06619025,60626.0,60625.0,0.003]
[1724152408165,0.0929137,60626.0,60625.0,0.003]
[1724152408369,3.8629137,60626.0,60625.0,0.003]
[1724152409870,3.83619025,60626.0,60625.0,0.003]
[1724152411659,3.91807579,60626.0,60625.0,0.003]
[1724152412971,0.14807579,60626.0,60625.0,0.068944]
[1724152413283,0.08213279,60626.0,60625.0,0.068944]
[1724152413473,0.00024725,60626.0,60625.0,0.068944]
[1724152414674,0.08215948,60626.0,60625.0,0.068944]
[1724152414880,0.00024725,60626.0,60625.0,0.068944]
[1724152417380,0.09291472,60626.0,60625.0,0.003]
[1724152417573,0.06619025,60626.0,60625.0,0.003]
[1724152417774,0.09291446,60626.0,60625.0,0.003]
[1724152419579,0.16447515,60626.0,60625.0,0.003]
[1724152419781,0.19119936,60626.0,60625.0,0.003]
[1724152420580,0.09291446,60626.0,60625.0,0.003]
[1724152421681,0.09291446,60626.0,60625.0,0.068944]
[1724152421880,0.09291522,60626.0,60625.0,0.068944]
[1724152422077,0.00024725,60626.0,60625.0,0.068944]
[1724152422278,0.00024725,60626.0,60625.0,0.09471654]
[1724152423582,0.00024725,60626.0,60625.0,0.14399785]
[1724152424179,0.00024725,60626.0,60625.0,0.09471654]
[1724152425873,0.00024725,60626.0,60625.0,0.09471585]
[1724152426073,0.00024725,60626.0,60625.0,0.068944]